[Event "Titled Tuesday Blitz February 15 Early 2022"]
[White "Volkov, Maksim"]
[Black "Sovetbekova, Nurai"]
[WhiteFideId "54123070"]
[BlackFideId "13801910"]
[WhiteElo "2081"]
[BlackElo "1545"]
[Result "1-0"]
[Round "10"]
[TimeControl "180+1"]
[Date "2022.02.15"]
[WhiteClock "0:00:18"]
[BlackClock "0:00:02"]

1. d4 {[%clk 0:02:40]}  Nf6 {[%clk 0:02:58]} 2. c4 {[%clk 0:02:39]}  g6 {[%clk 0:02:57]} 3. g3 {[%clk 0:02:39]}  Bg7 {[%clk 0:02:54]} 4. Bg2 {[%clk 0:02:39]}  d5 {[%clk 0:02:54]} 5. Qa4+ {[%clk 0:02:34]}  c6 {[%clk 0:02:45]} 6. cxd5 {[%clk 0:02:23]}  Nxd5 {[%clk 0:02:44]} 7. Nf3 {[%clk 0:02:17]}  O-O {[%clk 0:02:42]} 8. O-O {[%clk 0:02:16]}  Nd7 {[%clk 0:02:35]} 9. Rd1 {[%clk 0:02:14]}  N7b6 {[%clk 0:02:31]} 10. Qb3 {[%clk 0:02:11]}  Bf5 {[%clk 0:02:09]} 11. Nc3 {[%clk 0:01:59]}  Rc8 {[%clk 0:01:57]} 12. Nxd5 {[%clk 0:01:34]}  cxd5 {[%clk 0:01:48]} 13. Re1 {[%clk 0:01:29]}  Qd7 {[%clk 0:01:16]} 14. Bf4 {[%clk 0:01:23]}  Qa4 {[%clk 0:00:49]} 15. Qxa4 {[%clk 0:01:17]}  Nxa4 {[%clk 0:00:50]} 16. b3 {[%clk 0:01:17]}  Nc3 {[%clk 0:00:49]} 17. Ne5 {[%clk 0:01:10]}  Rfd8 {[%clk 0:00:35]} 18. a4 {[%clk 0:01:04]}  Bc2 {[%clk 0:00:24]} 19. Bd2 {[%clk 0:00:56]}  Bxe5 {[%clk 0:00:18]} 20. dxe5 {[%clk 0:00:55]}  d4 {[%clk 0:00:17]} 21. b4 {[%clk 0:00:50]}  Nxa4 {[%clk 0:00:13]} 22. Bxb7 {[%clk 0:00:47]}  Rc7 {[%clk 0:00:12]} 23. Bf3 {[%clk 0:00:47]}  Nb6 {[%clk 0:00:11]} 24. Rec1 {[%clk 0:00:45]}  Rdc8 {[%clk 0:00:08]} 25. e6 {[%clk 0:00:39]}  fxe6 {[%clk 0:00:06]} 26. Bf4 {[%clk 0:00:39]}  Rd7 {[%clk 0:00:03]} 27. Ra5 {[%clk 0:00:26]}  d3 {[%clk 0:00:03]} 28. exd3 {[%clk 0:00:25]}  Bxd3 {[%clk 0:00:04]} 29. Rd1 {[%clk 0:00:23]}  Bf5 {[%clk 0:00:03]} 30. Rxd7 {[%clk 0:00:21]}  Nxd7 {[%clk 0:00:04]} 31. Rxa7 {[%clk 0:00:22]}  Bh3 {[%clk 0:00:03]} 32. Rxd7 {[%clk 0:00:20]}  Ra8 {[%clk 0:00:02]} 33. Bxa8 {[%clk 0:00:18]} 1-0


[Site "https://www.chess.com"]

[Event "Titled Tuesday Blitz February 15 Early 2022"]
[White "Vusatiuk, Vladimir"]
[Black "Gatterer, Florian"]
[WhiteFideId "14118610"]
[BlackFideId "811688"]
[WhiteElo "2157"]
[BlackElo "2218"]
[Result "1-0"]
[Round "10"]
[TimeControl "180+1"]
[Date "2022.02.15"]
[WhiteClock "0:00:10"]
[BlackClock "0:00:15"]

1. Nf3 {[%clk 0:03:00]}  d5 {[%clk 0:01:45]} 2. h4 {[%clk 0:02:57]}  c5 {[%clk 0:01:42]} 3. h5 {[%clk 0:02:57]}  Nc6 {[%clk 0:01:42]} 4. d3 {[%clk 0:02:57]}  e5 {[%clk 0:01:41]} 5. h6 {[%clk 0:02:57]}  g6 {[%clk 0:01:41]} 6. e4 {[%clk 0:02:57]}  d4 {[%clk 0:01:40]} 7. Be2 {[%clk 0:02:51]}  f6 {[%clk 0:01:40]} 8. c3 {[%clk 0:02:34]}  Be6 {[%clk 0:01:38]} 9. cxd4 {[%clk 0:02:31]}  cxd4 {[%clk 0:01:38]} 10. Nbd2 {[%clk 0:02:30]}  Bxh6 {[%clk 0:01:36]} 11. a3 {[%clk 0:02:22]}  Qd7 {[%clk 0:01:30]} 12. Nb3 {[%clk 0:02:18]}  Bxc1 {[%clk 0:01:22]} 13. Nc5 {[%clk 0:02:17]}  Qe7 {[%clk 0:01:11]} 14. Rxc1 {[%clk 0:02:13]}  O-O-O {[%clk 0:00:56]} 15. Qa4 {[%clk 0:02:08]}  Kb8 {[%clk 0:00:55]} 16. Nxb7 {[%clk 0:02:03]}  Qxb7 {[%clk 0:00:53]} 17. Qxc6 {[%clk 0:02:00]}  Qxc6 {[%clk 0:00:52]} 18. Rxc6 {[%clk 0:02:01]}  Bd7 {[%clk 0:00:52]} 19. Rc4 {[%clk 0:01:36]}  Ne7 {[%clk 0:00:51]} 20. Kd2 {[%clk 0:01:34]}  Rc8 {[%clk 0:00:50]} 21. Rxc8+ {[%clk 0:01:33]}  Bxc8 {[%clk 0:00:48]} 22. b4 {[%clk 0:01:32]}  h5 {[%clk 0:00:45]} 23. g3 {[%clk 0:01:26]}  g5 {[%clk 0:00:45]} 24. Bd1 {[%clk 0:01:19]}  Bg4 {[%clk 0:00:44]} 25. Ne1 {[%clk 0:00:27]}  Bxd1 {[%clk 0:00:40]} 26. Kxd1 {[%clk 0:00:28]}  Kc7 {[%clk 0:00:38]} 27. Ng2 {[%clk 0:00:17]}  Kb6 {[%clk 0:00:37]} 28. Kc2 {[%clk 0:00:17]}  a5 {[%clk 0:00:33]} 29. Kb3 {[%clk 0:00:14]}  axb4 {[%clk 0:00:32]} 30. axb4 {[%clk 0:00:15]}  Nc6 {[%clk 0:00:31]} 31. f3 {[%clk 0:00:13]}  Ne7 {[%clk 0:00:30]} 32. f4 {[%clk 0:00:09]}  Nc6 {[%clk 0:00:26]} 33. fxg5 {[%clk 0:00:07]}  fxg5 {[%clk 0:00:24]} 34. Kc4 {[%clk 0:00:08]}  Ne7 {[%clk 0:00:22]} 35. Rf1 {[%clk 0:00:08]}  Kc7 {[%clk 0:00:18]} 36. Kc5 {[%clk 0:00:07]}  h4 {[%clk 0:00:18]} 37. gxh4 {[%clk 0:00:05]}  gxh4 {[%clk 0:00:18]} 38. Rh1 {[%clk 0:00:03]}  h3 {[%clk 0:00:18]} 39. Ne1 {[%clk 0:00:04]}  Kd7 {[%clk 0:00:17]} 40. b5 {[%clk 0:00:04]}  Ke6 {[%clk 0:00:15]} 41. Nf3 {[%clk 0:00:04]}  Rh5 {[%clk 0:00:13]} 42. Rxh3 {[%clk 0:00:03]}  Rxh3 {[%clk 0:00:12]} 43. Ng5+ {[%clk 0:00:04]}  Kd7 {[%clk 0:00:11]} 44. Nxh3 {[%clk 0:00:04]}  Ng6 {[%clk 0:00:12]} 45. Kd5 {[%clk 0:00:02]}  Ke7 {[%clk 0:00:11]} 46. b6 {[%clk 0:00:02]}  Kd7 {[%clk 0:00:09]} 47. Kc5 {[%clk 0:00:03]}  Nf4 {[%clk 0:00:08]} 48. Nxf4 {[%clk 0:00:03]}  exf4 {[%clk 0:00:09]} 49. Kxd4 {[%clk 0:00:04]}  Kc6 {[%clk 0:00:08]} 50. e5 {[%clk 0:00:04]}  Kxb6 {[%clk 0:00:08]} 51. Ke4 {[%clk 0:00:05]}  f3 {[%clk 0:00:09]} 52. Kxf3 {[%clk 0:00:05]}  Kc5 {[%clk 0:00:09]} 53. d4+ {[%clk 0:00:06]}  Kc6 {[%clk 0:00:10]} 54. Ke4 {[%clk 0:00:06]}  Kd7 {[%clk 0:00:11]} 55. d5 {[%clk 0:00:07]}  Ke7 {[%clk 0:00:11]} 56. e6 {[%clk 0:00:08]}  Kd8 {[%clk 0:00:12]} 57. Ke5 {[%clk 0:00:08]}  Ke8 {[%clk 0:00:13]} 58. d6 {[%clk 0:00:09]}  Kd8 {[%clk 0:00:13]} 59. Kf6 {[%clk 0:00:10]}  Ke8 {[%clk 0:00:14]} 60. d7+ {[%clk 0:00:10]}  Kf8 {[%clk 0:00:15]} 61. d8=Q# {[%clk 0:00:10]} 1-0


[Site "https://www.chess.com"]

[Event "Titled Tuesday Blitz February 15 Early 2022"]
[White "Williams, Simon K"]
[Black "Jain Kashish Manoj"]
[WhiteFideId "404454"]
[BlackFideId "35081098"]
[WhiteElo "2468"]
[BlackElo "1681"]
[Result "1-0"]
[Round "10"]
[TimeControl "180+1"]
[Date "2022.02.15"]
[WhiteClock "0:00:24"]
[BlackClock "0:00:02"]

1. d4 {[%clk 0:03:00]}  Nf6 {[%clk 0:02:59]} 2. c4 {[%clk 0:02:56]}  g6 {[%clk 0:02:58]} 3. h4 {[%clk 0:02:56]}  d6 {[%clk 0:02:46]} 4. Nc3 {[%clk 0:02:54]}  Bg7 {[%clk 0:02:41]} 5. e4 {[%clk 0:02:53]}  Nbd7 {[%clk 0:02:32]} 6. Be2 {[%clk 0:02:52]}  e5 {[%clk 0:02:26]} 7. d5 {[%clk 0:02:52]}  Nc5 {[%clk 0:02:24]} 8. Qc2 {[%clk 0:02:50]}  a5 {[%clk 0:02:24]} 9. h5 {[%clk 0:02:50]}  Bd7 {[%clk 0:02:07]} 10. Be3 {[%clk 0:02:37]}  Ng4 {[%clk 0:01:35]} 11. Bxg4 {[%clk 0:02:32]}  Bxg4 {[%clk 0:01:35]} 12. f3 {[%clk 0:02:32]}  Bd7 {[%clk 0:01:34]} 13. g4 {[%clk 0:02:22]}  Bf6 {[%clk 0:01:33]} 14. O-O-O {[%clk 0:01:57]}  Bg5 {[%clk 0:01:29]} 15. Qd2 {[%clk 0:01:57]}  Bxe3 {[%clk 0:01:25]} 16. Qxe3 {[%clk 0:01:57]}  Qf6 {[%clk 0:01:25]} 17. Nge2 {[%clk 0:01:55]}  O-O-O {[%clk 0:01:16]} 18. b3 {[%clk 0:01:48]}  Qe7 {[%clk 0:00:56]} 19. Kb2 {[%clk 0:01:12]}  f5 {[%clk 0:00:52]} 20. g5 {[%clk 0:01:08]}  f4 {[%clk 0:00:21]} 21. Qg1 {[%clk 0:01:07]}  gxh5 {[%clk 0:00:18]} 22. Rxh5 {[%clk 0:01:06]}  Rdg8 {[%clk 0:00:18]} 23. a3 {[%clk 0:01:02]}  Be8 {[%clk 0:00:18]} 24. Rh2 {[%clk 0:00:56]}  Rxg5 {[%clk 0:00:18]} 25. Qf2 {[%clk 0:00:56]}  Rhg8 {[%clk 0:00:18]} 26. b4 {[%clk 0:00:55]}  axb4 {[%clk 0:00:18]} 27. axb4 {[%clk 0:00:55]}  Na6 {[%clk 0:00:19]} 28. Ra1 {[%clk 0:00:51]}  Qg7 {[%clk 0:00:17]} 29. Qh4 {[%clk 0:00:40]}  Nxb4 {[%clk 0:00:13]} 30. Ra8+ {[%clk 0:00:27]}  Kd7 {[%clk 0:00:13]} 31. Qh3+ {[%clk 0:00:27]}  Rg4 {[%clk 0:00:07]} 32. fxg4 {[%clk 0:00:27]}  Qg5 {[%clk 0:00:05]} 33. Qxh7+ {[%clk 0:00:25]}  Rg7 {[%clk 0:00:05]} 34. Qh8 {[%clk 0:00:25]}  Bf7 {[%clk 0:00:02]} 35. Qc8+ {[%clk 0:00:24]} 1-0


[Site "https://www.chess.com"]

[Event "Titled Tuesday Blitz February 15 Early 2022"]
[White "Willow, Jonah B"]
[Black "Zhu, Jiner"]
[WhiteFideId "438804"]
[BlackFideId "8608059"]
[WhiteElo "2261"]
[BlackElo "2281"]
[Result "1-0"]
[Round "10"]
[TimeControl "180+1"]
[Date "2022.02.15"]
[WhiteClock "0:00:13"]
[BlackClock "0:00:07"]

1. e4 {[%clk 0:03:00]}  c5 {[%clk 0:03:00]} 2. Nf3 {[%clk 0:03:01]}  Nc6 {[%clk 0:03:00]} 3. Nc3 {[%clk 0:03:01]}  g6 {[%clk 0:02:54]} 4. d4 {[%clk 0:03:01]}  cxd4 {[%clk 0:02:55]} 5. Nxd4 {[%clk 0:03:02]}  Bg7 {[%clk 0:02:55]} 6. Be3 {[%clk 0:03:03]}  Nf6 {[%clk 0:02:55]} 7. Bc4 {[%clk 0:03:03]}  O-O {[%clk 0:02:55]} 8. Bb3 {[%clk 0:03:04]}  d5 {[%clk 0:02:55]} 9. exd5 {[%clk 0:02:57]}  Na5 {[%clk 0:02:55]} 10. Nde2 {[%clk 0:02:49]}  a6 {[%clk 0:02:53]} 11. O-O {[%clk 0:02:42]}  b5 {[%clk 0:02:53]} 12. Qd2 {[%clk 0:02:29]}  Bb7 {[%clk 0:02:38]} 13. Rfd1 {[%clk 0:02:27]}  Rc8 {[%clk 0:02:32]} 14. Nf4 {[%clk 0:02:18]}  Qd6 {[%clk 0:02:10]} 15. Nxb5 {[%clk 0:01:49]}  axb5 {[%clk 0:01:29]} 16. Qxa5 {[%clk 0:01:49]}  g5 {[%clk 0:01:28]} 17. Nh3 {[%clk 0:01:28]}  Ng4 {[%clk 0:01:24]} 18. g3 {[%clk 0:01:17]}  Nxe3 {[%clk 0:01:23]} 19. fxe3 {[%clk 0:01:18]}  Bxb2 {[%clk 0:01:23]} 20. Rab1 {[%clk 0:01:17]}  Bc3 {[%clk 0:01:12]} 21. Qxb5 {[%clk 0:01:17]}  Ba6 {[%clk 0:01:12]} 22. Qa4 {[%clk 0:01:18]}  Be2 {[%clk 0:01:02]} 23. Re1 {[%clk 0:01:02]}  Bxe1 {[%clk 0:00:55]} 24. Rxe1 {[%clk 0:01:03]}  Bf3 {[%clk 0:00:43]} 25. Nxg5 {[%clk 0:01:00]}  Bxd5 {[%clk 0:00:37]} 26. Qh4 {[%clk 0:00:45]}  h6 {[%clk 0:00:27]} 27. Bxd5 {[%clk 0:00:45]}  Qxd5 {[%clk 0:00:25]} 28. Qxh6 {[%clk 0:00:46]}  Qf5 {[%clk 0:00:25]} 29. Rf1 {[%clk 0:00:43]}  Qg6 {[%clk 0:00:24]} 30. Nxf7 {[%clk 0:00:32]}  Qxh6 {[%clk 0:00:19]} 31. Nxh6+ {[%clk 0:00:33]}  Kh7 {[%clk 0:00:19]} 32. Rxf8 {[%clk 0:00:32]}  Rxf8 {[%clk 0:00:20]} 33. Ng4 {[%clk 0:00:33]}  Rc8 {[%clk 0:00:20]} 34. Kf2 {[%clk 0:00:30]}  Rxc2+ {[%clk 0:00:20]} 35. Kf3 {[%clk 0:00:31]}  Rxa2 {[%clk 0:00:20]} 36. h4 {[%clk 0:00:31]}  Kg6 {[%clk 0:00:19]} 37. Ne5+ {[%clk 0:00:32]}  Kf5 {[%clk 0:00:19]} 38. Nd3 {[%clk 0:00:32]}  e5 {[%clk 0:00:18]} 39. g4+ {[%clk 0:00:31]}  Ke6 {[%clk 0:00:18]} 40. Nc5+ {[%clk 0:00:31]}  Kd5 {[%clk 0:00:17]} 41. Ne4 {[%clk 0:00:31]}  Ra1 {[%clk 0:00:15]} 42. Ng3 {[%clk 0:00:29]}  Ke6 {[%clk 0:00:12]} 43. g5 {[%clk 0:00:28]}  Ra4 {[%clk 0:00:10]} 44. Ne4 {[%clk 0:00:21]}  Rc4 {[%clk 0:00:09]} 45. h5 {[%clk 0:00:17]}  Rb4 {[%clk 0:00:10]} 46. g6 {[%clk 0:00:15]}  Rb1 {[%clk 0:00:08]} 47. h6 {[%clk 0:00:13]}  Rg1 {[%clk 0:00:08]} 48. h7 {[%clk 0:00:12]}  Rh1 {[%clk 0:00:07]} 49. g7 {[%clk 0:00:13]} 1-0


[Site "https://www.chess.com"]

[Event "Titled Tuesday Blitz February 15 Early 2022"]
[White "Yang, Kaiqi"]
[Black "Kovanova, Baira"]
[WhiteFideId "8604398"]
[BlackFideId "4164083"]
[WhiteElo "2373"]
[BlackElo "2190"]
[Result "0-1"]
[Round "10"]
[TimeControl "180+1"]
[Date "2022.02.15"]
[WhiteClock "0:00:05"]
[BlackClock "0:00:13"]

1. c4 {[%clk 0:03:00]}  e5 {[%clk 0:02:59]} 2. g3 {[%clk 0:03:01]}  Nf6 {[%clk 0:02:57]} 3. Bg2 {[%clk 0:03:01]}  d6 {[%clk 0:02:54]} 4. Nc3 {[%clk 0:03:00]}  g6 {[%clk 0:02:53]} 5. e4 {[%clk 0:02:50]}  Bg7 {[%clk 0:02:53]} 6. Nge2 {[%clk 0:02:50]}  c5 {[%clk 0:02:52]} 7. O-O {[%clk 0:02:50]}  O-O {[%clk 0:02:51]} 8. d3 {[%clk 0:02:51]}  Nc6 {[%clk 0:02:49]} 9. f4 {[%clk 0:02:46]}  Nd4 {[%clk 0:02:41]} 10. h3 {[%clk 0:02:45]}  h6 {[%clk 0:02:07]} 11. Be3 {[%clk 0:02:38]}  Be6 {[%clk 0:02:05]} 12. Qd2 {[%clk 0:02:37]}  Kh7 {[%clk 0:02:03]} 13. Rf2 {[%clk 0:02:34]}  Qd7 {[%clk 0:02:02]} 14. Kh2 {[%clk 0:02:33]}  Nh5 {[%clk 0:01:49]} 15. f5 {[%clk 0:02:02]}  gxf5 {[%clk 0:01:48]} 16. exf5 {[%clk 0:02:01]}  Nxf5 {[%clk 0:01:19]} 17. Be4 {[%clk 0:01:55]}  Kh8 {[%clk 0:01:18]} 18. Bxf5 {[%clk 0:01:51]}  Bxf5 {[%clk 0:01:17]} 19. g4 {[%clk 0:01:08]}  Bxg4 {[%clk 0:01:13]} 20. hxg4 {[%clk 0:01:09]}  Qxg4 {[%clk 0:01:13]} 21. Rh1 {[%clk 0:00:52]}  e4 {[%clk 0:01:06]} 22. Rg2 {[%clk 0:00:49]}  Be5+ {[%clk 0:00:51]} 23. Kg1 {[%clk 0:00:49]}  Qf3 {[%clk 0:00:51]} 24. Nxe4 {[%clk 0:00:34]}  Rg8 {[%clk 0:00:50]} 25. N2g3 {[%clk 0:00:15]}  Bxg3 {[%clk 0:00:34]} 26. Rh3 {[%clk 0:00:12]}  Rg6 {[%clk 0:00:26]} 27. Nxg3 {[%clk 0:00:08]}  Nxg3 {[%clk 0:00:17]} 28. Qf2 {[%clk 0:00:08]}  Ne2+ {[%clk 0:00:16]} 29. Kf1 {[%clk 0:00:06]}  Qxh3 {[%clk 0:00:14]} 30. Qxe2 {[%clk 0:00:05]}  Rag8 {[%clk 0:00:13]} 0-1


[Site "https://www.chess.com"]

[Event "Titled Tuesday Blitz February 15 Early 2022"]
[White "Zaichenko, Daria"]
[Black "Nadeev, Sergey"]
[WhiteFideId "4197453"]
[BlackFideId "4180038"]
[WhiteElo "2039"]
[BlackElo "2369"]
[Result "0-1"]
[Round "10"]
[TimeControl "180+1"]
[Date "2022.02.15"]
[WhiteClock "0:01:11"]
[BlackClock "0:00:54"]

1. e4 {[%clk 0:02:54]}  e5 {[%clk 0:02:59]} 2. Nf3 {[%clk 0:02:52]}  Nc6 {[%clk 0:02:59]} 3. Bc4 {[%clk 0:02:52]}  Nf6 {[%clk 0:02:59]} 4. d3 {[%clk 0:02:51]}  Bc5 {[%clk 0:02:59]} 5. c3 {[%clk 0:02:52]}  O-O {[%clk 0:02:59]} 6. O-O {[%clk 0:02:52]}  a5 {[%clk 0:02:56]} 7. Re1 {[%clk 0:02:52]}  d5 {[%clk 0:02:52]} 8. exd5 {[%clk 0:02:50]}  Nxd5 {[%clk 0:02:53]} 9. Nxe5 {[%clk 0:02:48]}  Nxe5 {[%clk 0:02:52]} 10. Rxe5 {[%clk 0:02:48]}  c6 {[%clk 0:02:52]} 11. Bxd5 {[%clk 0:02:46]}  cxd5 {[%clk 0:02:52]} 12. d4 {[%clk 0:02:46]}  Bd6 {[%clk 0:02:52]} 13. Re1 {[%clk 0:02:35]}  Qh4 {[%clk 0:02:51]} 14. g3 {[%clk 0:02:35]}  Qh3 {[%clk 0:02:51]} 15. Qf3 {[%clk 0:02:35]}  Bg4 {[%clk 0:02:49]} 16. Qxd5 {[%clk 0:02:32]}  Rad8 {[%clk 0:02:43]} 17. Qg2 {[%clk 0:02:32]}  Qh5 {[%clk 0:02:43]} 18. Nd2 {[%clk 0:02:29]}  Rfe8 {[%clk 0:02:42]} 19. Rf1 {[%clk 0:02:25]}  Bh3 {[%clk 0:02:40]} 20. Qf3 {[%clk 0:02:24]}  Qxf3 {[%clk 0:02:31]} 21. Nxf3 {[%clk 0:02:24]}  Bxf1 {[%clk 0:02:31]} 22. Kxf1 {[%clk 0:02:24]}  f6 {[%clk 0:02:23]} 23. Be3 {[%clk 0:02:24]}  Kf7 {[%clk 0:02:23]} 24. c4 {[%clk 0:02:23]}  g5 {[%clk 0:02:15]} 25. h3 {[%clk 0:02:22]}  h5 {[%clk 0:02:15]} 26. g4 {[%clk 0:02:21]}  h4 {[%clk 0:02:13]} 27. d5 {[%clk 0:02:17]}  Rc8 {[%clk 0:02:10]} 28. b3 {[%clk 0:02:15]}  Bc5 {[%clk 0:02:05]} 29. Bxc5 {[%clk 0:02:13]}  Rxc5 {[%clk 0:02:06]} 30. Nd4 {[%clk 0:02:14]}  Re4 {[%clk 0:01:59]} 31. Nf5 {[%clk 0:02:11]}  Kf8 {[%clk 0:01:49]} 32. Nd6 {[%clk 0:01:59]}  Re7 {[%clk 0:01:49]} 33. Re1 {[%clk 0:01:57]}  Rxe1+ {[%clk 0:01:46]} 34. Kxe1 {[%clk 0:01:55]}  b6 {[%clk 0:01:47]} 35. a3 {[%clk 0:01:51]}  Ke7 {[%clk 0:01:46]} 36. Ne4 {[%clk 0:01:46]}  Rc8 {[%clk 0:01:44]} 37. Kd2 {[%clk 0:01:46]}  a4 {[%clk 0:01:43]} 38. Kc3 {[%clk 0:01:45]}  axb3 {[%clk 0:01:43]} 39. Kxb3 {[%clk 0:01:46]}  Ra8 {[%clk 0:01:30]} 40. a4 {[%clk 0:01:45]}  Ra7 {[%clk 0:01:15]} 41. f3 {[%clk 0:01:43]}  Ra8 {[%clk 0:01:06]} 42. Kb4 {[%clk 0:01:43]}  Rf8 {[%clk 0:01:04]} 43. Kb5 {[%clk 0:01:41]}  f5 {[%clk 0:01:04]} 44. Nxg5 {[%clk 0:01:39]}  fxg4 {[%clk 0:01:03]} 45. fxg4 {[%clk 0:01:40]}  Rf4 {[%clk 0:01:00]} 46. Ne6 {[%clk 0:01:29]}  Rf3 {[%clk 0:00:59]} 47. Kc6 {[%clk 0:01:20]}  Rxh3 {[%clk 0:00:59]} 48. Ng5 {[%clk 0:01:20]}  Rd3 {[%clk 0:00:57]} 49. Kxb6 {[%clk 0:01:16]}  h3 {[%clk 0:00:55]} 50. Nxh3 {[%clk 0:01:16]}  Rxh3 {[%clk 0:00:56]} 51. Kc7 {[%clk 0:01:14]}  Rc3 {[%clk 0:00:55]} 52. d6+ {[%clk 0:01:11]}  Ke6 {[%clk 0:00:56]} 53. g5 {[%clk 0:01:10]}  Rxc4+ {[%clk 0:00:56]} 54. Kb6 {[%clk 0:01:10]}  Rxa4 {[%clk 0:00:55]} 55. g6 {[%clk 0:01:10]}  Kxd6 {[%clk 0:00:54]} 56. g7 {[%clk 0:01:10]}  Rg4 {[%clk 0:00:54]} 57. g8=Q {[%clk 0:01:11]}  Rxg8 {[%clk 0:00:54]} 0-1


[Site "https://www.chess.com"]

[Event "Titled Tuesday Blitz February 15 Early 2022"]
[White "Aaditya Dhingra"]
[Black "Hess, Robert"]
[WhiteFideId "25678191"]
[BlackFideId "2022036"]
[WhiteElo "1789"]
[BlackElo "2557"]
[Result "0-1"]
[Round "11"]
[TimeControl "180+1"]
[Date "2022.02.15"]
[WhiteClock "0:00:14"]
[BlackClock "0:00:29"]

1. e4 {[%clk 0:03:00]}  g6 {[%clk 0:03:00]} 2. d4 {[%clk 0:03:00]}  Bg7 {[%clk 0:03:00]} 3. Nf3 {[%clk 0:02:59]}  a6 {[%clk 0:02:59]} 4. a4 {[%clk 0:02:58]}  e6 {[%clk 0:02:59]} 5. Nc3 {[%clk 0:02:57]}  Ne7 {[%clk 0:02:59]} 6. Bd3 {[%clk 0:02:54]}  d6 {[%clk 0:02:59]} 7. Bg5 {[%clk 0:02:51]}  h6 {[%clk 0:02:59]} 8. Be3 {[%clk 0:02:50]}  Nd7 {[%clk 0:02:59]} 9. Qd2 {[%clk 0:02:48]}  b6 {[%clk 0:03:00]} 10. O-O-O {[%clk 0:02:44]}  Bb7 {[%clk 0:03:00]} 11. h4 {[%clk 0:02:44]}  Nf6 {[%clk 0:02:54]} 12. Kb1 {[%clk 0:02:12]}  b5 {[%clk 0:02:44]} 13. axb5 {[%clk 0:02:09]}  axb5 {[%clk 0:02:44]} 14. Bxb5+ {[%clk 0:02:09]}  c6 {[%clk 0:02:44]} 15. Bd3 {[%clk 0:02:09]}  Qa5 {[%clk 0:02:44]} 16. Kc1 {[%clk 0:01:55]}  Ng4 {[%clk 0:02:35]} 17. Nb1 {[%clk 0:01:48]}  Qc7 {[%clk 0:02:34]} 18. Rhe1 {[%clk 0:01:36]}  O-O {[%clk 0:02:34]} 19. h5 {[%clk 0:01:29]}  gxh5 {[%clk 0:02:30]} 20. Rh1 {[%clk 0:01:28]}  Ra5 {[%clk 0:02:19]} 21. e5 {[%clk 0:01:20]}  dxe5 {[%clk 0:01:48]} 22. Rxh5 {[%clk 0:01:18]}  Nxe3 {[%clk 0:01:43]} 23. fxe3 {[%clk 0:01:13]}  c5 {[%clk 0:01:14]} 24. Nxe5 {[%clk 0:01:04]}  c4 {[%clk 0:01:08]} 25. Bxc4 {[%clk 0:00:49]}  Rxe5 {[%clk 0:00:57]} 26. dxe5 {[%clk 0:00:47]}  Qxc4 {[%clk 0:00:57]} 27. Rdh1 {[%clk 0:00:43]}  Nf5 {[%clk 0:00:48]} 28. g4 {[%clk 0:00:31]}  Qxg4 {[%clk 0:00:40]} 29. R1h2 {[%clk 0:00:24]}  Qg1+ {[%clk 0:00:40]} 30. Qd1 {[%clk 0:00:17]}  Qxe3+ {[%clk 0:00:40]} 31. Nd2 {[%clk 0:00:16]}  Qxe5 {[%clk 0:00:39]} 32. c3 {[%clk 0:00:15]}  Ra8 {[%clk 0:00:39]} 33. Qg4 {[%clk 0:00:14]}  Ra1+ {[%clk 0:00:31]} 34. Nb1 {[%clk 0:00:14]}  Qe1+ {[%clk 0:00:29]} 0-1


[Site "https://www.chess.com"]

[Event "Titled Tuesday Blitz February 15 Early 2022"]
[White "Al-Tarboush, Ward"]
[Black "Shuvalova, Polina"]
[WhiteFideId "7601450"]
[BlackFideId "24171760"]
[WhiteElo "2276"]
[BlackElo "2355"]
[Result "1-0"]
[Round "11"]
[TimeControl "180+1"]
[Date "2022.02.15"]
[WhiteClock "0:02:53"]
[BlackClock "0:02:06"]

1. e4 {[%clk 0:03:00]}  c6 {[%clk 0:02:55]} 2. Nf3 {[%clk 0:03:01]}  d5 {[%clk 0:02:56]} 3. Nc3 {[%clk 0:03:00]}  Bg4 {[%clk 0:02:55]} 4. h3 {[%clk 0:03:00]}  Bxf3 {[%clk 0:02:56]} 5. Qxf3 {[%clk 0:03:01]}  e6 {[%clk 0:02:56]} 6. d3 {[%clk 0:03:02]}  Nd7 {[%clk 0:02:56]} 7. Bd2 {[%clk 0:03:02]}  Bb4 {[%clk 0:02:55]} 8. g4 {[%clk 0:03:02]}  Ne7 {[%clk 0:02:55]} 9. a3 {[%clk 0:03:02]}  Ba5 {[%clk 0:02:54]} 10. Bg2 {[%clk 0:03:03]}  h5 {[%clk 0:02:48]} 11. gxh5 {[%clk 0:03:01]}  d4 {[%clk 0:02:45]} 12. Nb1 {[%clk 0:03:01]}  Qb6 {[%clk 0:02:45]} 13. b4 {[%clk 0:03:00]}  Qb5 {[%clk 0:02:31]} 14. a4 {[%clk 0:02:55]}  Qe5 {[%clk 0:02:20]} 15. bxa5 {[%clk 0:02:54]}  Rxh5 {[%clk 0:02:12]} 16. Na3 {[%clk 0:02:53]}  Rh8 {[%clk 0:02:08]} 17. Nc4 {[%clk 0:02:53]}  Qc5 {[%clk 0:02:08]} 18. Rb1 {[%clk 0:02:54]}  e5 {[%clk 0:02:06]} 19. Bb4 {[%clk 0:02:53]} 1-0


[Site "https://www.chess.com"]